Workbook

Sheet Calculation
A1: KARCHE2005 friend connectedness | D1: From Table II | G1: =TEXT(TODAY()," dd-mmm-yyyy") -> 12-Nov-2019 | J1: Instructions: | M1: T:\Jan\RRest\RREst_trend.xlsm | S1: Release date: under development | Z1: Trend (Dose as entered)
J2: 1) Select Study type (case control, prospective or cross-sectional) and Categorised by (exposure or disease). | Z2: This uses the specified dose values and the RR (CI) values to estimate a Beta value, which represents
A3: Results: | J3: 2) Enter values/estimates in the No. of participants 2x2 table (P and Z are calculated from these). | Z3: the change in log relative risk per unit change in dose. The confidence interval (CI) for Beta is also
A4: Overall risk for the | B4: =IF(N57=2,"RR","OR") -> OR | C4: CI Lower | D4: CI Upper | F4: Decimal places: | G4: 5 | J4: 3) Enter RR, CI Lower and CI Upper (95% CI) for each category. A description can be entered for each one. | Z4: estimated. The exponentiated values are presented. The method is described in Berlin 1993 with
A5: specified contrast | B5: =IF(P59=1,IF(OR(N57=1,N57=3,S57=1),N53*O53/(P53*M53),N53*H23/(P53*G23)),0) -> 2.229093419 | C5: =IF(P59=1,EXP(K57),0) -> 0.9754669508 | D5: =IF(P59=1,EXP(K58),0) -> 5.093824519 | J5: For valid trend estimates, enter the rows of data in order of increasing exposure (increasing dose). | Z5: Greenland and Longnecker 1992 providing a correction to take account of the non-independence of the
B6: Chi-sq | C6: DF | D6: p | F6: Solver Precision: | J6: 4) Enter the required Contrast to be used in estimating Overall risk: | Z6: RR (CI) values. The method for extending this to prospective studies is given in Orsini 2012.
A7: Heterogeneity | B7: =IF(P59=1,((X55-1)*(1/W53+1/X53)*R53),0) -> 8.654041941 | C7: =IF(P59=1,S53-1,0) -> 2 | D7: =IF(P59=1,CHIDIST(B7,C7),0) -> 0.01320683249 | J7: 0 for baseline, 1 for comparison, -1 to exclude the category. | Z7: Note: | AA7: Trend is not calculated if the data are entered out of order of increasing dose.
A8: Trend (Breslow 1980) | B8: =IF(T59=1,IF(S57=1,Q60,0),0) -> 8.453589701 | C8: =IF(T59=1,IF(S57=1,S60,0),0) -> 1 | D8: =IF(T59=1,IF(S57=1,U60,0),0) -> 0.003643236434 | J8: Note: For a prospective study categorised by disease, Ao and Bo are always the baseline. | AA8: The trend calculations ignore exposed rows with -1 in the Contrast column.
J9: 5) Enter Dose values for the trend tests. Dose should be proportional to amount of exposure. | AA9: The method assumes zero dose for the first row, the unexposed. If a non-zero dose
A10: Trend: rate of increase in risk per unit dose | J10: Note: Dose and Trend values are not meaningful for results categorised by disease type. | AA10: is entered there, the code subtracts the "unexposed" dose from the dose for each category
B11: Rate | C11: CI Lower | D11: CI Upper | J11: 6) Click Calculate to generate the table of Estimated nos. of participants in each category | AA11: (see "Dose values, adjusted"). This has no effect on the trend (which equates to the slope).
A12: Dose as entered | B12: 1.946698152 | C12: 1.237109413 | D12: 3.063297114 | J12: and to calculate the values in Results. | Z12: Trend (Uniform scale)
A13: Uniform scale | B13: 5.5864574 | C13: 1.743688797 | D13: 17.89797946 | J13: Generating the table of Estimated numbers of participants involves use of the Solver add-in: | Z13: This is calculated in the same way as Trend (Dose as entered) except that it does not use the specified
J14: this adjusts the first row of that table (Ao and Bo) to give the lowest Sum of Squares for the error in the | Z14: dose values. Instead a score is imputed for each category, using the order of the categories and the
A15: Data entry area: | C15: Study type: | F15: Categorised by: | J15: resulting P' and Z' values. It uses the variance of each category, estimated using the CIs entered. | Z15: distribution of the study population across the categories. This distribution is best approximated by the
J16: 7) Enter Heading and Notes to describe the study, the contrast etc. The spreadsheet can be saved to a file. | Z16: controls (for case control), the at risk (for prospective) or the sum of cases and non-cases
B17: No. of participants | C17: =IF(S57=1,"Cases","Exposed") -> Cases | D17: =IF(S57=1,IF(N57=1,"Controls",IF(N57=2,"At Risk","Non-cases")),"Unexposed") -> Non-cases | G17: Start values for | J17: If Calculate finds "no feasible solution", a) check the data entered, b) change the Solver Precision setting | Z17: (for cross-sectional). The Estimated numbers (pseudo-numbers) are used. Score values lie between
B18: =IF(S57=1,"Unexposed",IF(N57=1,"Controls",IF(N57=2,"At Risk","Non-cases"))) -> Unexposed | C18: 19 | D18: 37 | G18: =IF(S57=1," nos. of Unexposed",IF(N57=1," nos. of Controls",IF(N57=2," nos. At Risk"," nos. of Non-cases"))) -> nos. of Unexposed | J18: or c) change the Start values (Unprotect Sheet; overwrite the values in cells G20 and H20). | Z18: 0 and 1. The N individuals are each assigned a score value ("dose") of (n-0.5)/N. These values are then
B19: =IF(S57=1,"All Exposed","All Cases") -> All Exposed | C19: 116 | D19: 130 | G19: =IF(S57=1,"Cases","Exposed") -> Cases | H19: =IF(S57=1,IF(N57=1,"Controls",IF(N57=2,"At risk","Non-cases")),"Unexposed") -> Non-cases | J19: See the documentation for the meanings of P, P', Z and Z'; and for details of the Sum of Squares calculations. | Z19: averaged over category. Again, the vaues are adjusted to give zero scale value (dose) in the unexposed.
B20: Total | C20: =SUM(C18:C19) -> 135 | D20: =SUM(D18:D19) -> 167 | G20: =C18 -> 19 | H20: =D18 -> 37 | J20: Underlying calculations: | M20: Contrast: | Q20: Heterogeneity and trend: | W20: No.(excluding | Z20: Trend | AA20: Dose as entered | AB20: Uniform scale
G21: ---- Estimated nos. ---- | K21: Variance: | M21: Base | N21: Comp. | O21: Base | P21: Comp. | R21: Hetero: | S21: DF+1 | T21: Trend | W21: contrast = -1) | AA21: Dose values | AC21: Scale values
A22: Category | B22: =IF(N57=2,"RR","OR") -> OR | C22: CI Lower | D22: CI Upper | E22: Contrast | F22: Dose | G22: =IF(S57=1,"Cases","Exposed") -> Cases | H22: =IF(S57=1,IF(N57=1,"Controls",IF(N57=2,"At risk","Non-cases")),"Unexposed") -> Non-cases | J22: Category | K22: V(i) | L22: Vextra | M22: =IF(S57=1,"cases","exposed") -> cases | N22: =IF(S57=1,"cases","exposed") -> cases | O22: =IF(S57=1,IF(N57=1,"cntrls",IF(N57=2,"at risk","non-cs")),"unexp") -> non-cs | P22: =IF(S57=1,IF(N57=1,"cntrls",IF(N57=2,"at risk","non-cs")),"unexp") -> non-cs | Q22: e | R22: (a-e)^2/m | T22: x(a-e) | U22: x^2m | V22: xm | W22: =IF(S57=1,IF(N57=1,"cases","dead"),"exposed") -> dead | X22: =IF(S57=1,IF(N57=1,"cntrls","alive"),"unexp") -> alive | Z22: Var by Ns | AA22: adjusted | AB22: Scale values | AC22: adjusted
A23: Low | B23: 1 | C23: - | D23: - | E23: 0 | F23: 0 | G23: 9.327480308 | H23: 22.57817352 | J23: =IF(AND(N57=2,S57=2),"At risk/Alive",A23) -> Low | M23: =IF(E23=0,G23,0) -> 9.327480308 | N23: =IF(E23=1,G23,0) -> 0 | O23: =IF(E23=0,H23,0) -> 22.57817352 | P23: =IF(E23=1,H23,0) -> 0 | Q23: =(W23+X23)*$W$53/$X$55 -> 14.26246264 | R23: =IF((W23+X23)=0,0,((W23-Q23)^2)/(W23+X23)) -> 0.7633145765 | S23: =IF(Q23=0,0,1) -> 1 | T23: =F23*(W23-Q23) -> 0 | U23: =(F23^2)*(W23+X23) -> 0 | V23: =F23*(W23+X23) -> 0 | W23: =IF(OR(E23=-1,G23+H23=0),0,IF(AND(N57=2,S57=2),G23-SUM(G24:G52),G23)) -> 9.327480308 | X23: =IF(OR(E23=-1,G23+H23=0),0,IF(OR($N$57=1,$N$57=3),H23,IF($S$57=1,H23-G23,H23-SUM(H24:H52)))) -> 22.57817352 | AA23: 0 | AB23: 0.08656525379 | AC23: 0
A24: Medium | B24: 1.7 | C24: 0.72 | D24: 4.04 | E24: 1 | F24: 1 | G24: =IF(B24>0,IF(OR($N$57=1,$N$57=3),(1+($G$23*B24/$H$23))/L24,IF($S$57=1,(1-($G$23*B24/$H$23))/L24,(1+($G$23*B24/$H$23))/L24)),0) -> 40.43958936 | H24: =IF(B24>0,IF(OR($N$57=1,$N$57=3),(1+$H$23/($G$23*B24))/L24,IF($S$57=1,(-1+$H$23/($G$23*B24))/L24,(1+$H$23/($G$23*B24))/L24)),0) -> 57.58140813 | J24: =A24 -> Medium | K24: =IF(B24>0,((LN(D24/C24))/(2*NORMINV(0.975,0,1)))^2,0) -> 0.1935956117 | L24: =IF(B24>0,IF(OR($N$57=1,$N$57=3),+K24-(1/$G$23)-(1/$H$23),IF($S$57=1,+K24-(1/$G$23)+(1/$H$23),+K24+(1/$G$23)+(1/$H$23))),0) -> 0.04209495984 | M24: =IF(E24=0,G24,0) -> 0 | N24: =IF(E24=1,G24,0) -> 40.43958936 | O24: =IF(E24=0,H24,0) -> 0 | P24: =IF(E24=1,H24,0) -> 57.58140813 | Q24: =(W24+X24)*$W$53/$X$55 -> 43.81733791 | R24: =IF((W24+X24)=0,0,((W24-Q24)^2)/(W24+X24)) -> 0.1163953184 | S24: =IF(Q24=0,0,1) -> 1 | T24: =F24*(W24-Q24) -> -3.377748542 | U24: 98.0209975 | V24: 98.0209975 | W24: =IF(OR(E24=-1,G24+H24=0),0,G24) -> 40.43958936 | X24: =IF(OR(E24=-1,G24+H24=0),0,IF(AND($N$57=2,$S$57=1),H24-G24,H24)) -> 57.58140813 | Z24: =IF(B24>0,IF(OR(N$57=1,N$57=3),(1/G$23)+(1/H$23)+(1/G24)+(1/H24),IF(S$57=1,(1/G$23)-(1/H$23)+(1/G24)-(1/H24),-(1/G$23)-(1/H$23)+(1/G24)+(1/H24))),0) -> 0.1935956117 | AA24: 0 | AB24: 0.4390774952 | AC24: 0.3525122414
A25: High | B25: 3.63 | C25: 1.43 | D25: 9.3 | E25: 1 | F25: 2 | G25: =IF(B25>0,IF(OR($N$57=1,$N$57=3),(1+($G$23*B25/$H$23))/L25,IF($S$57=1,(1-($G$23*B25/$H$23))/L25,(1+($G$23*B25/$H$23))/L25)),0) -> 32.6127653 | H25: =IF(B25>0,IF(OR($N$57=1,$N$57=3),(1+$H$23/($G$23*B25))/L25,IF($S$57=1,(-1+$H$23/($G$23*B25))/L25,(1+$H$23/($G$23*B25))/L25)),0) -> 21.74730601 | J25: High | K25: 0.2281461988 | L25: =IF(B25>0,IF(OR($N$57=1,$N$57=3),+K25-(1/$G$23)-(1/$H$23),IF($S$57=1,+K25-(1/$G$23)+(1/$H$23),+K25+(1/$G$23)+(1/$H$23))),0) -> 0.07664554686 | M25: 0 | N25: =IF(E25=1,G25,0) -> 32.6127653 | O25: 0 | P25: 21.74730601 | Q25: 24.30003442 | R25: =IF((W25+X25)=0,0,((W25-Q25)^2)/(W25+X25)) -> 1.271181089 | S25: 1 | T25: 16.62546175 | U25: 217.4402852 | V25: 108.7201426 | W25: =IF(OR(E25=-1,G25+H25=0),0,G25) -> 32.6127653 | X25: =IF(OR(E25=-1,G25+H25=0),0,IF(AND($N$57=2,$S$57=1),H25-G25,H25)) -> 21.74730601 | Z25: =IF(B25>0,IF(OR(N$57=1,N$57=3),(1/G$23)+(1/H$23)+(1/G25)+(1/H25),IF(S$57=1,(1/G$23)-(1/H$23)+(1/G25)-(1/H25),-(1/G$23)-(1/H$23)+(1/G25)+(1/H25))),0) -> 0.2281461988 | AA25: 0 | AB25: 0.8525122414 | AC25: 0.7659469876
A26: 3 | G26: 0 | H26: 0 | J26: 3 | K26: 0 | L26: 0 | M26: 0 | N26: 0 | O26: 0 | P26: 0 | Q26: 0 | R26: 0 | S26: 0 | T26: 0 | U26: 0 | V26: 0 | W26: 0 | X26: 0 | Z26: 0 | AA26: 0 | AB26: 0 | AC26: 0
A27: 4 | G27: =IF(B27>0,IF(OR($N$57=1,$N$57=3),(1+($G$23*B27/$H$23))/L27,IF($S$57=1,(1-($G$23*B27/$H$23))/L27,(1+($G$23*B27/$H$23))/L27)),0) -> 0 | H27: =IF(B27>0,IF(OR($N$57=1,$N$57=3),(1+$H$23/($G$23*B27))/L27,IF($S$57=1,(-1+$H$23/($G$23*B27))/L27,(1+$H$23/($G$23*B27))/L27)),0) -> 0 | J27: 4 | K27: 0 | L27: 0 | M27: 0 | N27: 0 | O27: 0 | P27: 0 | Q27: 0 | R27: 0 | S27: 0 | T27: 0 | U27: 0 | V27: 0 | W27: 0 | X27: 0 | Z27: 0 | AA27: 0 | AB27: 0 | AC27: 0
A28: 5 | G28: 0 | H28: 0 | J28: 5 | K28: 0 | L28: 0 | M28: 0 | N28: 0 | O28: 0 | P28: 0 | Q28: 0 | R28: 0 | S28: 0 | T28: 0 | U28: 0 | V28: 0 | W28: 0 | X28: 0 | Z28: 0 | AA28: 0 | AB28: 0 | AC28: 0
A29: 6 | G29: 0 | H29: 0 | J29: 6 | K29: 0 | L29: 0 | M29: 0 | N29: 0 | O29: 0 | P29: 0 | Q29: 0 | R29: 0 | S29: 0 | T29: 0 | U29: 0 | V29: 0 | W29: 0 | X29: 0 | Z29: 0 | AA29: 0 | AB29: 0 | AC29: 0
A30: 7 | G30: 0 | H30: 0 | J30: 7 | K30: 0 | L30: 0 | M30: 0 | N30: 0 | O30: 0 | P30: 0 | Q30: 0 | R30: 0 | S30: 0 | T30: 0 | U30: 0 | V30: 0 | W30: 0 | X30: 0 | Z30: 0 | AA30: 0 | AB30: 0 | AC30: 0
A31: 8 | G31: 0 | H31: 0 | J31: 8 | K31: 0 | L31: 0 | M31: 0 | N31: 0 | O31: 0 | P31: 0 | Q31: 0 | R31: 0 | S31: 0 | T31: 0 | U31: 0 | V31: 0 | W31: 0 | X31: 0 | Z31: 0 | AA31: 0 | AB31: 0 | AC31: 0
A32: 9 | G32: 0 | H32: 0 | J32: 9 | K32: 0 | L32: 0 | M32: 0 | N32: 0 | O32: 0 | P32: 0 | Q32: 0 | R32: 0 | S32: 0 | T32: 0 | U32: 0 | V32: 0 | W32: 0 | X32: 0 | Z32: 0 | AA32: 0 | AB32: 0 | AC32: 0
A33: 10 | G33: 0 | H33: 0 | J33: 10 | K33: 0 | L33: 0 | M33: 0 | N33: 0 | O33: 0 | P33: 0 | Q33: 0 | R33: 0 | S33: 0 | T33: 0 | U33: 0 | V33: 0 | W33: 0 | X33: 0 | Z33: 0 | AA33: 0 | AB33: 0 | AC33: 0
A34: 11 | G34: 0 | H34: 0 | J34: 11 | K34: 0 | L34: 0 | M34: 0 | N34: 0 | O34: 0 | P34: 0 | Q34: 0 | R34: 0 | S34: 0 | T34: 0 | U34: 0 | V34: 0 | W34: 0 | X34: 0 | Z34: 0 | AA34: 0 | AB34: 0 | AC34: 0
A35: 12 | G35: 0 | H35: 0 | J35: 12 | K35: 0 | L35: 0 | M35: 0 | N35: 0 | O35: 0 | P35: 0 | Q35: 0 | R35: 0 | S35: 0 | T35: 0 | U35: 0 | V35: 0 | W35: 0 | X35: 0 | Z35: 0 | AA35: 0 | AB35: 0 | AC35: 0
A36: 13 | G36: 0 | H36: 0 | J36: 13 | K36: 0 | L36: 0 | M36: 0 | N36: 0 | O36: 0 | P36: 0 | Q36: 0 | R36: 0 | S36: 0 | T36: 0 | U36: 0 | V36: 0 | W36: 0 | X36: 0 | Z36: 0 | AA36: 0 | AB36: 0 | AC36: 0
A37: 14 | G37: 0 | H37: 0 | J37: 14 | K37: 0 | L37: 0 | M37: 0 | N37: 0 | O37: 0 | P37: 0 | Q37: 0 | R37: 0 | S37: 0 | T37: 0 | U37: 0 | V37: 0 | W37: 0 | X37: 0 | Z37: 0 | AA37: 0 | AB37: 0 | AC37: 0
A38: 15 | G38: 0 | H38: 0 | J38: 15 | K38: 0 | L38: 0 | M38: 0 | N38: 0 | O38: 0 | P38: 0 | Q38: 0 | R38: 0 | S38: 0 | T38: 0 | U38: 0 | V38: 0 | W38: 0 | X38: 0 | Z38: 0 | AA38: 0 | AB38: 0 | AC38: 0
A39: 16 | G39: 0 | H39: 0 | J39: 16 | K39: 0 | L39: 0 | M39: 0 | N39: 0 | O39: 0 | P39: 0 | Q39: 0 | R39: 0 | S39: 0 | T39: 0 | U39: 0 | V39: 0 | W39: 0 | X39: 0 | Z39: 0 | AA39: 0 | AB39: 0 | AC39: 0
A40: 17 | G40: 0 | H40: 0 | J40: 17 | K40: 0 | L40: 0 | M40: 0 | N40: 0 | O40: 0 | P40: 0 | Q40: 0 | R40: 0 | S40: 0 | T40: 0 | U40: 0 | V40: 0 | W40: 0 | X40: 0 | Z40: 0 | AA40: 0 | AB40: 0 | AC40: 0
A41: 18 | G41: 0 | H41: 0 | J41: 18 | K41: 0 | L41: 0 | M41: 0 | N41: 0 | O41: 0 | P41: 0 | Q41: 0 | R41: 0 | S41: 0 | T41: 0 | U41: 0 | V41: 0 | W41: 0 | X41: 0 | Z41: 0 | AA41: 0 | AB41: 0 | AC41: 0
A42: 19 | G42: 0 | H42: 0 | J42: 19 | K42: 0 | L42: 0 | M42: 0 | N42: 0 | O42: 0 | P42: 0 | Q42: 0 | R42: 0 | S42: 0 | T42: 0 | U42: 0 | V42: 0 | W42: 0 | X42: 0 | Z42: 0 | AA42: 0 | AB42: 0 | AC42: 0
A43: 20 | G43: 0 | H43: 0 | J43: 20 | K43: 0 | L43: 0 | M43: 0 | N43: 0 | O43: 0 | P43: 0 | Q43: 0 | R43: 0 | S43: 0 | T43: 0 | U43: 0 | V43: 0 | W43: 0 | X43: 0 | Z43: 0 | AA43: 0 | AB43: 0 | AC43: 0
A44: 21 | G44: 0 | H44: 0 | J44: 21 | K44: 0 | L44: 0 | M44: 0 | N44: 0 | O44: 0 | P44: 0 | Q44: 0 | R44: 0 | S44: 0 | T44: 0 | U44: 0 | V44: 0 | W44: 0 | X44: 0 | Z44: 0 | AA44: 0 | AB44: 0 | AC44: 0
A45: 22 | G45: 0 | H45: 0 | J45: 22 | K45: 0 | L45: 0 | M45: 0 | N45: 0 | O45: 0 | P45: 0 | Q45: 0 | R45: 0 | S45: 0 | T45: 0 | U45: 0 | V45: 0 | W45: 0 | X45: 0 | Z45: 0 | AA45: 0 | AB45: 0 | AC45: 0
A46: 23 | G46: 0 | H46: 0 | J46: 23 | K46: 0 | L46: 0 | M46: 0 | N46: 0 | O46: 0 | P46: 0 | Q46: 0 | R46: 0 | S46: 0 | T46: 0 | U46: 0 | V46: 0 | W46: 0 | X46: 0 | Z46: 0 | AA46: 0 | AB46: 0 | AC46: 0
A47: 24 | G47: 0 | H47: 0 | J47: 24 | K47: 0 | L47: 0 | M47: 0 | N47: 0 | O47: 0 | P47: 0 | Q47: 0 | R47: 0 | S47: 0 | T47: 0 | U47: 0 | V47: 0 | W47: 0 | X47: 0 | Z47: 0 | AA47: 0 | AB47: 0 | AC47: 0
A48: 25 | G48: 0 | H48: 0 | J48: 25 | K48: 0 | L48: 0 | M48: 0 | N48: 0 | O48: 0 | P48: 0 | Q48: 0 | R48: 0 | S48: 0 | T48: 0 | U48: 0 | V48: 0 | W48: 0 | X48: 0 | Z48: 0 | AA48: 0 | AB48: 0 | AC48: 0
A49: 26 | G49: 0 | H49: 0 | J49: 26 | K49: 0 | L49: 0 | M49: 0 | N49: 0 | O49: 0 | P49: 0 | Q49: 0 | R49: 0 | S49: 0 | T49: 0 | U49: 0 | V49: 0 | W49: 0 | X49: 0 | Z49: 0 | AA49: 0 | AB49: 0 | AC49: 0
A50: 27 | G50: 0 | H50: 0 | J50: 27 | K50: 0 | L50: 0 | M50: 0 | N50: 0 | O50: 0 | P50: 0 | Q50: 0 | R50: 0 | S50: 0 | T50: 0 | U50: 0 | V50: 0 | W50: 0 | X50: 0 | Z50: 0 | AA50: 0 | AB50: 0 | AC50: 0
A51: 28 | G51: 0 | H51: 0 | J51: 28 | K51: 0 | L51: 0 | M51: 0 | N51: 0 | O51: 0 | P51: 0 | Q51: 0 | R51: 0 | S51: 0 | T51: 0 | U51: 0 | V51: 0 | W51: 0 | X51: 0 | Z51: 0 | AA51: 0 | AB51: 0 | AC51: 0
A52: 29 | G52: 0 | H52: 0 | J52: 29 | K52: 0 | L52: 0 | M52: 0 | N52: 0 | O52: 0 | P52: 0 | Q52: 0 | R52: 0 | S52: 0 | T52: 0 | U52: 0 | V52: 0 | W52: 0 | X52: 0 | Z52: 0 | AA52: 0 | AB52: 0 | AC52: 0
A53: Notes: | J53: Col. totals: | M53: =SUM(M23:M52) -> 9.327480308 | N53: 73.05235466 | O53: 22.57817352 | P53: 79.32871414 | R53: 2.150890984 | S53: 3 | T53: =SUM(T23:T52) -> 13.24771321 | U53: =SUM(U23:U52) -> 315.4612827 | V53: =SUM(V23:V52) -> 206.7411401 | W53: =SUM(W23:W52) -> 82.37983497 | X53: =SUM(X23:X52) -> 101.9068877
J54: =IF(S57=1,"Tot cases:","Tot exposed:") -> Tot cases: | K54: =SUM(G23:G52) -> 82.37983497 | L54: Study | M54: 1 | N54: Case control | S54: RRs by category of | T54: Total participants included in | Z54: Ln (RR) values:
J55: =IF(S57=1,IF(N57=1,"Tot cntrls:",IF(N57=3,"Tot non-cs:","Tot at risk:")),"Tot unexp:") -> Tot non-cs: | K55: =SUM(H23:H52) -> 101.9068877 | L55: types | M55: 2 | N55: Prospective | Q55: 1 | R55: Exposure | W55: hetero/trend analyses (N): | X55: =SUM(W53:X53) -> 184.2867226 | AA55: Dose as entered | AB55: Uniform scale
J56: Variance: | K56: =IF(OR(N57=1,N57=3),(1/M53)+(1/N53)+(1/O53)+(1/P53),IF(S57=1,(1/M53)+(1/N53)-(1/O53)-(1/P53),-(1/G23)+(1/N53)-(1/H23)+(1/P53))) -> 0.1777952406 | M56: 3 | N56: Cross-sectional | Q56: 2 | R56: Disease | V56: Sum of squares: | W56: =((V57-V58)/V57)^2+((X57-X58)/X57)^2 -> 3.712022789e-14 | Z56: Beta | AA56: 0.666134682 | AB56: 1.720345348
J57: Ln(Lower): | K57: =LN(B5)-(NORMINV(0.975,0,1)*SQRT(K56)) -> -0.02483899871 | L57: Current type: | N57: 3 | R57: Curr cat: | S57: 1 | T57: Initial: | U57: P | V57: =D18/D20 -> 0.2215568862 | W57: Z | X57: =D20/C20 -> 1.237037037 | Z57: Var (Beta) | AA57: 0.053503814 | AB57: 0.3529110876
J58: Ln(Upper): | K58: =LN(B5)+(NORMINV(0.975,0,1)*SQRT(K56)) -> 1.628028927 | P58: Current no. of decimal places: | Q58: 5 | T58: Soln.: | U58: P' | V58: =H23/K55 -> 0.2215568941 | W58: Z' | X58: =K55/K54 -> 1.237036803 | Z58: se (Beta) | AA58: 0.2313089146 | AB58: 0.5940632017
O59: Estimated numbers valid? | P59: 1 | R59: Trend valid? | T59: 1 | V59: 1 = True; 0 = False
O60: Trend (Breslow 1980): | P60: ChiSq: | Q60: =((X55^2)*(X55-1)*(T53^2))/(W53*X53*(X55*U53-(V53^2))) -> 8.453589701 | R60: DF: | S60: 1 | T60: p: | U60: =CHIDIST(Q60,S60) -> 0.003643236434

Sheet ByDistribution (hidden)
A1: Trend by Distribution
A3: Examples: Peter's example | D3: Individuals.
B4: Low | C4: High
A5: N | B5: 5 | C5: 5
A7: Participant | B7: Rank | C7: Scaled rank | D7: Mean scaled rank
A8: 1 | B8: 0.5 | C8: =B8/A$18 -> 0.05 | D8: =SUM(C8:C12)/5 -> 0.25
A9: 2 | B9: 1.5 | C9: =B9/A$18 -> 0.15
A10: 3 | B10: 2.5 | C10: 0.25
A11: 4 | B11: 3.5 | C11: 0.35
A12: 5 | B12: 4.5 | C12: 0.45
A13: 6 | B13: 5.5 | C13: 0.55 | D13: =SUM(C13:C17)/5 -> 0.75
A14: 7 | B14: 6.5 | C14: =B14/A$18 -> 0.65
A15: 8 | B15: 7.5 | C15: 0.75
A16: 9 | B16: 8.5 | C16: 0.85
A17: 10 | B17: 9.5 | C17: 0.95
A18: =COUNT(A8:A17) -> 10
A20: Rank = mid-point of range
B22: N | C22: Range of ranks | D22: Mid point | E22: Running total | F22: Dose | G22: Dose, scaled | I22: Scaled Dose x N
A23: Lowest | B23: 5 | C23: 0-5 | D23: 2.5 | E23: =B23 -> 5 | F23: =D23 -> 2.5 | G23: =F23/B$25 -> 0.25 | I23: =B23*G23 -> 1.25
A24: Highest | B24: 5 | C24: >5-10 | D24: 2.5 | E24: =E23+B24 -> 10 | F24: =E23+D24 -> 7.5 | G24: =F24/B$25 -> 0.75 | I24: =B24*G24 -> 3.75
A25: Total | B25: =SUM(B23:B24) -> 10 | I25: =SUM(I23:I24) -> 5
A26: Mean dose | I26: =I25/B25 -> 0.5
A28: Examples: PA26's example | D28: Groups of known size.
A30: 100 individuals:
B31: N | C31: Range of ranks | D31: Mid point | E31: Running total | F31: Dose | G31: Dose, scaled | I31: Scaled Dose x N
A32: Lowest | B32: 30 | C32: 1-30 | D32: 15 | E32: =B32 -> 30 | F32: =D32 -> 15 | G32: =F32/B$36 -> 0.15 | I32: =B32*G32 -> 4.5
A33: Group 2 | B33: 20 | C33: 31-50 | D33: 10 | E33: =E32+B33 -> 50 | F33: =E32+D33 -> 40 | G33: =F33/B$36 -> 0.4 | I33: =B33*G33 -> 8
A34: Group 3 | B34: 40 | C34: 51-90 | D34: 20 | E34: =E33+B34 -> 90 | F34: =E33+D34 -> 70 | G34: 0.7 | I34: 28
A35: Highest | B35: 10 | C35: 91-100 | D35: 5 | E35: =E34+B35 -> 100 | F35: 95 | G35: 0.95 | I35: 9.5
A36: Total | B36: =SUM(B32:B35) -> 100 | I36: =SUM(I32:I35) -> 50
A37: Mean dose | I37: =I36/B36 -> 0.5
A39: Dose = running total (to start of range) + mid point (of range)
A40: Dose, scaled = Dose / Total N
A43: Greenland & Longnecker 1992 values
B44: N | C44: Range of ranks | D44: Mid point | E44: Running total | F44: Dose | G44: Dose, scaled | I44: Scaled Dose x N | K44: Adjusted dose
A45: unexp | B45: 176.5 | D45: =B45/2 -> 88.25 | E45: =B45 -> 176.5 | F45: =D45 -> 88.25 | G45: =F45/B$49 -> 0.1956762749 | I45: =B45*G45 -> 34.53686253 | K45: =G45-G$45 -> 0
A46: <2.5 | B46: 96.7 | D46: =B46/2 -> 48.35 | E46: =E45+B46 -> 273.2 | F46: =E45+D46 -> 224.85 | G46: =F46/B$49 -> 0.4985587583 | I46: =B46*G46 -> 48.21063193 | K46: =G46-G$45 -> 0.3028824834
A47: 2.5-9.3 | B47: 90.5 | D47: 45.25 | E47: =E46+B47 -> 363.7 | F47: =E46+D47 -> 318.45 | G47: 0.706097561 | I47: 63.90182927 | K47: 0.510421286
A48: >9.3 | B48: 87.3 | D48: 43.65 | E48: 451 | F48: 407.35 | G48: 0.9032150776 | I48: 78.85067627 | K48: 0.7075388027
A49: Total | B49: =SUM(B45:B48) -> 451 | I49: =SUM(I45:I48) -> 225.5
A50: Mean dose | I50: =I49/B49 -> 0.5
A53: Berlin 1993:
B54: N | C54: Range of ranks | D54: Mid point | E54: Running total | F54: Dose | G54: Dose, scaled | I54: Scaled Dose x N | K54: Adjusted dose
A55: Never | B55: 156 | D55: =B55/2 -> 78 | E55: =B55 -> 156 | F55: =D55 -> 78 | G55: =F55/B$60 -> 0.1480075901 | I55: =B55*G55 -> 23.08918406 | K55: =G55-G$55 -> 0
A56: 0-3 yrs | B56: 205 | D56: =B56/2 -> 102.5 | E56: =E55+B56 -> 361 | F56: =E55+D56 -> 258.5 | G56: =F56/B$60 -> 0.490512334 | I56: =B56*G56 -> 100.5550285 | K56: =G56-G$55 -> 0.3425047438
A57: 4-7 yrs | B57: 93 | D57: 46.5 | E57: =E56+B57 -> 454 | F57: =E56+D57 -> 407.5 | G57: 0.7732447818 | I57: 71.91176471 | K57: 0.6252371917
A58: 8-11 yrs | B58: 50 | D58: 25 | E58: 504 | F58: =E57+D58 -> 479 | G58: 0.9089184061 | I58: 45.4459203 | K58: 0.7609108159
A59: 12+ yrs | B59: 23 | D59: 11.5 | E59: 527 | F59: =E58+D59 -> 515.5 | G59: 0.9781783681 | I59: 22.49810247 | K59: 0.830170778
A60: Total | B60: =SUM(B55:B59) -> 527 | I60: =SUM(I55:I59) -> 263.5
A61: Mean dose | I61: =I60/B60 -> 0.5
A64: YUAN1996
B65: N at risk | C65: Range of ranks | D65: Mid point | E65: Running total | F65: Dose | G65: Dose, scaled | I65: Scaled Dose x N | K65: Adjusted dose
A66: Never | B66: 6761.479 | D66: =B66/2 -> 3380.7395 | E66: =B66 -> 6761.479 | F66: =D66 -> 3380.7395 | G66: =F66/B$69 -> 0.2134126278 | I66: =B66*G66 -> 1442.985001 | K66: =G66-G$66 -> 0
A67: <20 cigs/day | B67: 4593.6656 | D67: =B67/2 -> 2296.8328 | E67: =E66+B67 -> 11355.1446 | F67: =E66+D67 -> 9058.3118 | G67: =F67/B$69 -> 0.5718151678 | I67: =B67*G67 -> 2626.727666 | K67: =G67-G$66 -> 0.35840254
A68: 20+ cigs/day | B68: 4486.1837 | D68: 2243.09185 | E68: =E67+B68 -> 15841.3283 | F68: =E67+D68 -> 13598.23645 | G68: 0.85840254 | I68: =B68*G68 -> 3850.951483 | K68: 0.6449899122
A69: Total | B69: =SUM(B66:B68) -> 15841.3283 | I69: =SUM(I66:I68) -> 7920.66415
A70: Mean dose | I70: =I69/B69 -> 0.5
A73: KARCHE2005 | B73: Parental connectedness
B74: N | C74: Range of ranks | D74: Mid point | E74: Running total | F74: Dose | G74: Dose, scaled | I74: Scaled Dose x N | K74: Adjusted dose
A75: Low | B75: =SUM(KARCHE2005_P!C16:D16) -> 66.89872377 | D75: =B75/2 -> 33.44936189 | E75: =B75 -> 66.89872377 | F75: =D75 -> 33.44936189 | G75: =F75/B$78 -> 0.08573670301 | I75: =B75*G75 -> 5.735676012 | K75: =G75-G$75 -> 0
A76: Medium | B76: =SUM(KARCHE2005_P!C17:D17) -> 170.7589011 | D76: =B76/2 -> 85.37945057 | E76: =E75+B76 -> 237.6576249 | F76: =E75+D76 -> 152.2781743 | G76: =F76/B$78 -> 0.3903162235 | I76: =B76*G76 -> 66.64996941 | K76: =G76-G$75 -> 0.3045795204
A77: High | B77: =SUM(KARCHE2005_P!C18:D18) -> 152.482895 | D77: 76.24144749 | E77: =E76+B77 -> 390.1405199 | F77: =E76+D77 -> 313.8990724 | G77: 0.8045795204 | I77: =B77*G77 -> 122.6846145 | K77: 0.7188428174
A78: Total | B78: =SUM(B75:B77) -> 390.1405199 | I78: =SUM(I75:I77) -> 195.0702599
A79: Mean dose | I79: =I78/B78 -> 0.5
A82: KARCHE2005 | B82: Friend connectedness
B83: N | C83: Range of ranks | D83: Mid point | E83: Running total | F83: Dose | G83: Dose, scaled | I83: Scaled Dose x N | K83: Adjusted dose
A84: Low | B84: =SUM(KARCHE2005_F!C16:D16) -> 31.90569467 | D84: =B84/2 -> 15.95284734 | E84: =B84 -> 31.90569467 | F84: =D84 -> 15.95284734 | G84: =F84/B$87 -> 0.08656524004 | I84: =B84*G84 -> 2.761924118 | K84: =G84-G$84 -> 0
A85: Medium | B85: =SUM(KARCHE2005_F!C17:D17) -> 98.02122027 | D85: =B85/2 -> 49.01061013 | E85: =E84+B85 -> 129.9269149 | F85: =E84+D85 -> 80.91630481 | G85: =F85/B$87 -> 0.4390776895 | I85: =B85*G85 -> 43.03893091 | K85: =G85-G$84 -> 0.3525124494
A86: High | B86: =SUM(KARCHE2005_F!C18:D18) -> 54.36007287 | D86: 27.18003644 | E86: =E85+B86 -> 184.2869878 | F86: =E85+D86 -> 157.1069514 | G86: 0.8525124494 | I86: =B86*G86 -> 46.34263888 | K86: 0.7659472094
A87: Total | B87: =SUM(B84:B86) -> 184.2869878 | I87: =SUM(I84:I86) -> 92.14349391
A88: Mean dose | I88: =I87/B87 -> 0.5
A91: GALLO2010
B92: N | C92: Range of ranks | D92: Mid point | E92: Running total | F92: Dose | G92: Dose, scaled | I92: Scaled Dose x N | K92: Adjusted dose
A93: unexp | B93: =GALLO2010!D11 -> 21683.57711 | D93: =B93/2 -> 10841.78856 | E93: =B93 -> 21683.57711 | F93: =D93 -> 10841.78856 | G93: =F93/B$97 -> 0.4542311879 | I93: =B93*G93 -> 9849.356991 | K93: =G93-G$93 -> 0
A94: 0.5 pack/day | B94: =GALLO2010!D12 -> 1016.607913 | D94: =B94/2 -> 508.3039564 | E94: =E93+B94 -> 22700.18503 | F94: =E93+D94 -> 22191.88107 | G94: =F94/B$97 -> 0.9297584479 | I94: =B94*G94 -> 945.1997951 | K94: =G94-G$93 -> 0.47552726
A95: 1 pack/day | B95: =GALLO2010!D13 -> 763.9216446 | D95: 381.9608223 | E95: =E94+B95 -> 23464.10667 | F95: =E94+D95 -> 23082.14585 | G95: 0.9670572779 | I95: 738.7559862 | K95: 0.5128260899
A96: 1.5+ packs/day | B96: =GALLO2010!D14 -> 404.3304699 | D96: 202.1652349 | E96: 23868.43714 | F96: 23666.27191 | G96: 0.9915300179 | I96: 400.9057981 | K96: 0.53729883
A97: Total | B97: =SUM(B93:B96) -> 23868.43714 | I97: =SUM(I93:I96) -> 11934.21857
A98: Mean dose | I98: =I97/B97 -> 0.5

Sheet GREENL1992 (hidden)
A1: GREENL1992 | D1: Note: our effective numbers are not used in testing: the code has an option to use the numbers given in the paper.
A2: Data from Table 1 and text
B4: X | C4: Fitted values (n) | E4: Adjusted results | H4: v(i) | I4: v(i) | J4: s(i)
B5: Dose | C5: Cases | D5: Controls | E5: RR | F5: CI Lower | G5: CI Upper | H5: based on CI | I5: based on n | J5: based on n | K5: 1/Ao+1/Bo | L5: r(x,2) | M5: r(x,6) | N5: r(x,11) | O5: C(x,2) | P5: C(x,6) | Q5: C(x,11)
A6: None | B6: 0 | C6: 160.5 | D6: 176.5 | K6: =1/C6+1/D6 -> 0.01189625197
A7: <2.5 g | B7: 2 | C7: 70.3 | D7: 96.7 | E7: 0.8 | F7: 0.51 | G7: 1.27 | H7: =(LN(G7/F7)/(2*NORMINV(0.975,0,1)))^2 -> 0.05417235099 | I7: =1/C$6+1/D$6+1/C7+1/D7 -> 0.03646226468 | J7: =SQRT(I7) -> 0.1909509483 | M7: =K6/(J7*J8) -> 0.3408030214 | N7: =K6/(J7*J9) -> 0.3517461332 | O7: =H7 -> 0.05417235099 | P7: =M7*SQRT(H7*H8) -> 0.01881692918 | Q7: =N7*SQRT(H7*H9) -> 0.01943025744
A8: 2.5-9.3 g | B8: 6 | C8: 95.5 | D8: 90.5 | E8: 1.16 | F8: 0.73 | G8: 1.85 | H8: =(LN(G8/F8)/(2*NORMINV(0.975,0,1)))^2 -> 0.05627466838 | I8: =1/C$6+1/D$6+1/C8+1/D8 -> 0.03341717992 | J8: =SQRT(I8) -> 0.182803665 | L8: =K6/(J7*J8) -> 0.3408030214 | N8: =K6/(J8*J9) -> 0.3674229274 | O8: =L8*SQRT(H8*H7) -> 0.01881692918 | P8: =H8 -> 0.05627466838 | Q8: =N8*SQRT(H8*H9) -> 0.0206863137
A9: >9.3 g | B9: 11 | C9: 124.7 | D9: 87.3 | E9: 1.57 | F9: 0.99 | G9: 2.51 | H9: 0.05632753707 | I9: 0.03137025189 | J9: 0.1771164924 | L9: =K6/(J9*J7) -> 0.3517461332 | M9: =K6/(J9*J8) -> 0.3674229274 | O9: =L9*SQRT(H9*H7) -> 0.01943025744 | P9: =M9*SQRT(H9*H8) -> 0.0206863137 | Q9: =H9 -> 0.05632753707
C10: =SUM(C6:C9) -> 451 | D10: =SUM(D6:D9) -> 451
O11: Note:
A12: Check | B12: 1.0405811 | C12: 1.00250271 | D12: 1.080105833 | O12: C uses v(i) for diagonals and a calculation using r for off-diagonals.
B13: 1.42999327 | C13: 0.8959554667 | D13: 2.282346419 | E13: L | I13: N Cases | J13: N Controls | O13: v(i) are based on CIs.
A14: None | H14: Unexposed | I14: 165 | J14: 172 | O14: r is calculated using the s(i) which are based on n values
A15: <2.5 g | C15: =(C7/D7)/(C$6/D$6) -> 0.7994632853 | E15: =LN(E7) -> -0.2231435513 | H15: Exposed | I15: =451-I14 -> 286 | J15: =451-J14 -> 279 | P15: This is the best estimate we have for correlation.
A16: 2.5-9.3 g | C16: =(C8/D8)/(C$6/D$6) -> 1.160444743 | E16: =LN(E8) -> 0.1484200051 | H16: Total | I16: =I14+I15 -> 451 | J16: =J14+J15 -> 451
A17: >9.3 g | C17: 1.570803581 | E17: 0.4510756194
A19: Matrix with zero values:
A20: =O7 -> 0.05417235099 | B20: =P7 -> 0.01881692918 | C20: 0.01943025744 | D20: 0 | E20: 0 | G20: =MINVERSE(A20:E24) ->  | M20: We can't use MINVERSE to invert a generalised table of values:
A21: =O8 -> 0.01881692918 | B21: 0.05627466838 | C21: 0.0206863137 | D21: 0 | E21: 0 | M21: we need to provide MINVERSE with a fully-populated matrix
A22: 0.01943025744 | B22: 0.0206863137 | C22: 0.05632753707 | D22: 0 | E22: 0 | M22: i.e. the parameters to MINVERSE need to specify
A23: 0 | B23: 0 | C23: 0 | D23: 0 | E23: 0 | M23: only the populated rows/columns.
A24: 0 | B24: 0 | C24: 0 | D24: 0 | E24: 0 | M24: We can't do this in a variable way, dependent on the data entered.
A26: Matrix without zero values | G26: Inverted matrix
A27: =O7 -> 0.05417235099 | B27: =P7 -> 0.01881692918 | C27: 0.01943025744 | G27: =MINVERSE(A27:C29) -> 22.38802662 | H27: -5.372451134 | I27: -5.749743875
A28: =O8 -> 0.01881692918 | B28: =P8 -> 0.05627466838 | C28: =Q8 -> 0.0206863137 | G28: -5.372451134 | H28: 21.83255191 | I28: -6.16478062
A29: 0.01943025744 | B29: 0.0206863137 | C29: 0.05632753707 | G29: -5.749743875 | H29: -6.16478062 | I29: 22.00070612
K30: Dose by distribution
A31: X inverted | K31: Values from ByDistribution sheet | O31: =T32 -> X(0) | P31: =T33 -> X(1) | Q31: =T34 -> X(2) | R31: =T35 -> X(3)
A32: =B7 -> 2 | B32: =B8 -> 6 | C32: =B9 -> 11 | N32: X inverted | O32: =U32 -> 0 | P32: =U33 -> 0.3028824834 | Q32: =U34 -> 0.510421286 | R32: =U35 -> 0.7075388027 | T32: X(0) | U32: =ByDistribution!K45 -> 0 | V32: ignored
O33: ignored | T33: X(1) | U33: =ByDistribution!K46 -> 0.3028824834
A34: x' C-1 L: | C34: C-1 L | D34: =MMULT(G27:I29,E15:E17) -> -8.386692272 | F34: x' C-1 L: | G34: =MMULT(A32:C32,D34:D36) -> 106.3894738 | T34: X(2) | U34: =ByDistribution!K47 -> 0.510421286
D35: 1.658433054 | T35: X(3) | U35: =ByDistribution!K48 -> 0.7075388027
D36: 10.29202364
C38: x' C-1 | D38: =MMULT(A32:C32,G27:I29) -> -50.70583619 | E38: 52.43782234 | F38: 193.5195958 | K38: x' C-1 | L38: =MMULT(P32:R32,G27:I29) -> -0.02943921318 | M38: 5.154756381 | N38: 10.67822131
C40: x' C-1 L: | D40: =MMULT(D38:F38,E15:E17) -> 106.3894738 | K40: x' C-1 L: | L40: =MMULT(L38:N38,E15:E17) -> 5.58832343
A42: Vb*: | C42: x' C-1 x | D42: =MMULT(D38:F38,B7:B9) -> 2341.930816 | F42: Vb* | G42: =1/D42 -> 0.0004269980963 | K42: x' C-1 x | L42: =MMULT(L38:N38,U33:U35) -> 10.17743668 | N42: Vb* | O42: =1/L42 -> 0.09825656809
C44: b* | D44: =G42*D40 -> 0.04542810276 | K44: b* | L44: =O42*L40 -> 0.5490894816
A47: Identity matrix? | C47: =MMULT(A27:C29,G27:I29) -> 1 | D47: -1.387778781e-17 | E47: 0 | G47: Yes!
C48: 6.938893904e-17 | D48: 1 | E48: 5.551115123e-17
C49: 5.551115123e-17 | D49: 0 | E49: 1
A51: Exp(b*) | D51: =EXP(D44) -> 1.046475763 | F51: OR | I51: Exp(b*) | L51: =EXP(L44) -> 1.731675577 | N51: OR
A52: Exp(b*-1.96*Vb*) | D52: =EXP(D44-(NORMINV(0.975,0,1)*SQRT(G42))) -> 1.0049397 | F52: CI (lower) | I52: Exp(b*-1.96*Vb*) | L52: =EXP(L44-(NORMINV(0.975,0,1)*SQRT(O42))) -> 0.9368061121 | N52: CI (lower)
A53: Exp(b*+1.96*Vb*) | D53: =EXP(D44+(NORMINV(0.975,0,1)*SQRT(G42))) -> 1.089728591 | F53: CI (upper) | I53: Exp(b*+1.96*Vb*) | L53: =EXP(L44+(NORMINV(0.975,0,1)*SQRT(O42))) -> 3.200982857 | N53: CI (upper)
A56: Increased dose values
A57: X inverted | I57: X
A58: 3 | B58: 7 | C58: 12 | I58: 3 | AA58: 0.03977930666 | AB58: 0.3576697377
I59: 7 | AA59: 0.0003617838575 | AB59: 0.05690242657
A60: x' C-1 L: | C60: C-1 L | D60: =MMULT(G27:I29,E15:E17) -> -8.386692272 | F60: x' C-1 L: | G60: =MMULT(A58:C58,D60:D62) -> 109.9532382 | I60: 12
D61: 1.658433054
D62: 10.29202364
C64: x' C-1 | D64: =MMULT(A58:C58,G27:I29) -> -39.44000458 | E64: 62.7331425 | F64: 203.6057775
C66: x' C-1 L: | D66: =MMULT(D64:F64,E15:E17) -> 109.9532382
A68: Vb*: | C68: x' C-1 x | D68: =MMULT(D64:F64,I58:I60) -> 2764.081313 | F68: Vb* | G68: =1/D68 -> 0.0003617838575
C70: b* | D70: =G68*D66 -> 0.03977930666
A73: Exp(b*) | D73: =EXP(D70) -> 1.0405811 | F73: OR
A74: Exp(b*-1.96*Vb*) | D74: =EXP(D70-(NORMINV(0.975,0,1)*SQRT(G68))) -> 1.00250271 | F74: CI (lower)
A75: Exp(b*+1.96*Vb*) | D75: =EXP(D70+(NORMINV(0.975,0,1)*SQRT(G68))) -> 1.080105833 | F75: CI (upper)

Sheet BERLIN1993 (hidden)
A1: BERLIN1993 | C1: Note: our effective numbers are not used in testing: the code has an option to use the numbers given in the paper.
A2: Data from Table 1 and text
H3: v(i) | I3: v(i) | J3: s(i) | K3: rNum =
B4: Dose | C4: Cases | D4: Controls | E4: RR | F4: CI Lower | G4: CI Upper | H4: based on CI | I4: based on n | J4: based on n | K4: 1/Ao+1/Bo | L4: r(x,0-3) | M4: r(x,4-7) | N4: r(x,8-11) | O4: r(x,12+) | P4: C(x,0-3) | Q4: C(x,4-7) | R4: C(x,8-11) | S4: C(x,12+) | U4: L = Ln(RR)
A5: Never | B5: 0 | C5: 96 | D5: 156 | K5: =1/C5+1/D5 -> 0.01682692308
A6: 0-3 yrs | B6: 1.5 | C6: 156 | D6: 205 | E6: 1.1 | F6: 0.8 | G6: 1.6 | H6: =(LN(G6/F6)/(2*NORMINV(0.975,0,1)))^2 -> 0.03126761449 | I6: =1/C$5+1/D$5+1/C6+1/D6 -> 0.02811522827 | J6: =SQRT(I6) -> 0.1676759621 | M6: =K5/(J6*J7) -> 0.5012705061 | N6: =K5/(J6*J8) -> 0.4224356261 | O6: =K5/(J6*J9) -> 0.3423107503 | P6: =H6 -> 0.03126761449 | Q6: =M6*SQRT(H6*H7) -> 0.01955943299 | R6: =N6*SQRT(H6*H8) -> 0.02012405083 | S6: =O6*SQRT(H6*H9) -> 0.01859116062 | U6: =LN(E6) -> 0.0953101798
A7: 4-7 yrs | B7: 5.5 | C7: 80 | D7: 93 | E7: 1.2 | F7: 0.8 | G7: 1.9 | H7: =(LN(G7/F7)/(2*NORMINV(0.975,0,1)))^2 -> 0.04869377766 | I7: =1/C$5+1/D$5+1/C7+1/D7 -> 0.04007961125 | J7: =SQRT(I7) -> 0.2001989292 | L7: =K5/(J6*J7) -> 0.5012705061 | N7: =K5/(J7*J8) -> 0.3538095849 | O7: =K5/(J7*J9) -> 0.2867012557 | P7: =L7*SQRT(H7*H6) -> 0.01955943299 | Q7: =H7 -> 0.04869377766 | R7: =N7*SQRT(H7*H8) -> 0.02103361025 | S7: =O7*SQRT(H7*H9) -> 0.01943143704 | U7: =LN(E7) -> 0.1823215568
A8: 8-11 yrs | B8: 9.5 | C8: 51 | D8: 50 | E8: 1.4 | F8: 0.8 | G8: 2.3 | H8: 0.07257966978 | I8: 0.05643476621 | J8: 0.2375600265 | L8: =K5/(J8*J6) -> 0.4224356261 | M8: =K5/(J8*J7) -> 0.3538095849 | O8: =K5/(J8*J9) -> 0.2416117106 | P8: =L8*SQRT(H8*H6) -> 0.02012405083 | Q8: =M8*SQRT(H8*H7) -> 0.02103361025 | R8: =H8 -> 0.07257966978 | S8: =O8*SQRT(H8*H9) -> 0.01999236005 | U8: 0.3364722366
A9: 12+ yrs | B9: 14.4 | C9: 39 | D9: 23 | E9: 2.2 | F9: 1.2 | G9: 4 | H9: =(LN(G9/F9)/(2*NORMINV(0.975,0,1)))^2 -> 0.09433593989 | I9: =1/C$5+1/D$5+1/C9+1/D9 -> 0.08594620959 | J9: =SQRT(I9) -> 0.2931658397 | L9: =K5/(J9*J6) -> 0.3423107503 | M9: =K5/(J9*J7) -> 0.2867012557 | N9: =K5/(J9*J8) -> 0.2416117106 | P9: =L9*SQRT(H9*H6) -> 0.01859116062 | Q9: =M9*SQRT(H9*H7) -> 0.01943143704 | R9: =N9*SQRT(H9*H8) -> 0.01999236005 | S9: =H9 -> 0.09433593989 | U9: 0.7884573604
A10: Total | C10: =SUM(C5:C9) -> 422 | D10: =SUM(D5:D9) -> 527
A12: Check | C12: OR
A13: None
A14: 0-3 yrs | C14: =(C6/D6)/(C$5/D$5) -> 1.236585366
A15: 4-7 yrs | C15: =(C7/D7)/(C$5/D$5) -> 1.397849462
A16: 8-11 yrs | C16: =(C8/D8)/(C$5/D$5) -> 1.6575
A17: 12+ yrs | C17: =(C9/D9)/(C$5/D$5) -> 2.755434783
A19: Inverted matrix | H19: =MINVERSE(P6:S9) -> 49.07347502 | I19: -14.20461706 | J19: -8.105174314 | K19: -5.027513076 | N19: Check: | O19: =MMULT(P6:S9,H19:K22) -> 1 | P19: -6.938893904e-18 | Q19: -6.938893904e-18 | R19: 0
H20: -14.20461706 | I20: 28.80023762 | J20: -3.764605893 | K20: -2.335126257 | O20: -1.387778781e-17 | P20: 1 | Q20: 4.163336342e-17 | R20: 0
H21: -8.105174314 | I21: -3.764605893 | J21: 17.48327794 | K21: -1.332426301 | O21: -5.551115123e-17 | P21: -8.326672685e-17 | Q21: 1 | R21: -2.775557562e-17
H22: -5.027513076 | I22: -2.335126257 | J22: -1.332426301 | K22: 12.35457568 | O22: -5.551115123e-17 | P22: 2.775557562e-17 | Q22: 0 | R22: 1
A25: X inverted | K25: Dose by distribution
A26: =B6 -> 1.5 | B26: =B7 -> 5.5 | C26: =B8 -> 9.5 | D26: =B9 -> 14.4 | K26: Values from ByDistribution sheet | O26: =U27 -> X(0) | P26: =U28 -> X(1) | Q26: =U29 -> X(2) | R26: =U30 -> X(3) | S26: X(4) | V26: X
N27: X inverted | O27: =V27 -> 0 | P27: =V28 -> 0.3425047438 | Q27: =V29 -> 0.6252371917 | R27: =V30 -> 0.7609108159 | S27: =V31 -> 0.830170778 | U27: X(0) | V27: =ByDistribution!K55 -> 0 | W27: ignored
O28: ignored | U28: X(1) | V28: =ByDistribution!K56 -> 0.3425047438
A29: x' C-1 L: | C29: C-1 L | D29: =MMULT(H19:K22,U6:U9) -> -4.603751987 | U29: X(2) | V29: =ByDistribution!K57 -> 0.6252371917
D30: 0.7892267039 | U30: X(3) | V30: =ByDistribution!K58 -> 0.7609108159
D31: 3.373201878 | U31: X(4) | V31: =ByDistribution!K59 -> 0.830170778
D32: 8.387814639
C34: x' C-1 | D34: =MMULT(A26:D26,H19:K22) -> -153.9105256 | E34: 67.70480725 | F34: 114.0411078 | G34: 144.8633759 | K34: x' C-1 | L34: =MMULT(P27:S27,H19:K22) -> -2.41436613 | M34: 8.33874804 | N34: 7.067241632 | O34: 6.060595256
C36: x' C-1 L: | D36: =MMULT(D34:G34,U6:U9) -> 150.2650675 | F36: =MMULT(A26:D26,D29:D32) -> 150.2650675 | K36: x' C-1 L: | L36: =MMULT(L34:O34,U6:U9) -> 8.446671391 | N36: =MMULT(P27:S27,D29:D32) -> 8.446671391
I37: se(B*) | Q37: se(B*)
A38: Vb*: | C38: x' C-1 x | D38: =MMULT(D34:G34,B6:B9) -> 3310.933788 | F38: Vb* | G38: =1/D38 -> 0.0003020295977 | I38: =SQRT(G38) -> 0.01737899876 | K38: x' C-1 x | L38: =MMULT(L34:O34,V28:V31) -> 14.79563323 | N38: Vb* | O38: =1/L38 -> 0.0675875094 | Q38: =SQRT(O38) -> 0.2599759785
C40: b* | D40: =G38*D36 -> 0.0453844979 | K40: b* | L40: =O38*L36 -> 0.5708894821

Sheet YUAN1996 (hidden)
A1: YUAN1996 | C1: Prospective study. | F1: Note: our effective numbers are not used in testing: the code has an option to use the numbers given in the paper.
A2: This paper was included in IESLC dose response project. See FRY2013B.
A3: For relevant output see N:\rlmeta\IESLC3_DR\CDAY_DOSE.rtf
B4: Table 1: study details including CC/Prosp study type.
B5: Table 2: cigs/day ranges, as available in each paper.
B6: Table 3: detailed parameters used: mean dose, RR(CI), effective numbers; and results: beta, se(beta).
A8: Not rounded: | C8: Cases | D8: At Risk
B9: Unexp | C9: 14 | D9: 7787 | H9: Unexposed case: given in database. | L9: Unexposed At risk: given in paper and database.
B10: Exp | C10: =C11-C9 -> 128.0083738 | D10: =D11-D9 -> 10458.07966
B11: Total | C11: =D11/128.4789 -> 142.0083738 | D11: =D9/0.4268 -> 18245.07966
B12: Check | C12: =SUM(C9:C10) -> 142.0083738 | D12: =SUM(D9:D10) -> 18245.07966
A14: Unexp At risk / Total At risk | D14: =D9/D11 -> 0.4268 | F14: PRUNCO | H14: As given in database.
A15: Total At risk / Total Cases | D15: =D11/C11 -> 128.4789 | F15: RCOCA | H15: As given in database.
A18: Rounded: | C18: Cases | D18: At Risk | H18: Don't use these.
B19: Unexp | C19: 14 | D19: 7787
B20: Exp | C20: =C21-C19 -> 128 | D20: =D21-D19 -> 10458
B21: Total | C21: =ROUND(D21/128.4789,0) -> 142 | D21: =ROUND(D19/0.4268,0) -> 18245
B22: Check | C22: =SUM(C19:C20) -> 142 | D22: =SUM(D19:D20) -> 18245
A24: Unexp / At risk | D24: =D19/D21 -> 0.4268018635 | F24: PRUNCO
A25: At risk / Cases | D25: =D21/C21 -> 128.4859155 | F25: RCOCA
B27: --------- Given in database ----------
H28: v(i) | I28: v(i) | J28: s(i) | K28: rNum =
A29: Cigs/day | B29: Dose | C29: Cases | D29: At Risk | E29: RR | F29: CI Lower | G29: CI Upper | H29: based on CI | I29: based on n | J29: based on n | K29: 1/Ao-1/Bo | L29: r(x,<20) | M29: r(x,20+) | P29: C(x,<20) | Q29: C(x,20+) | U29: L = Ln(RR)
A30: Never | B30: 0 | C30: 12.7341 | D30: 6761.479 | K30: =1/C30-1/D30 -> 0.07838140657
A31: <20 | B31: 10 | C31: 31.1449 | D31: 4593.6656 | E31: 3.6 | F31: 1.88 | G31: 6.91 | H31: =(LN(G31/F31)/(2*NORMINV(0.975,0,1)))^2 -> 0.1102717353 | I31: =1/C$30-1/D$30+1/C31-1/D31 -> 0.1102717011 | J31: =SQRT(I31) -> 0.3320718312 | M31: =K30/(J31*J32) -> 0.7835347222 | P31: =H31 -> 0.1102717353 | Q31: =M31*SQRT(H31*H32) -> 0.07838145717 | U31: =LN(E31) -> 1.280933845
A32: 20+ | B32: 26.0294 | C32: 79.4201 | D32: 4486.1837 | E32: 9.4 | F32: 5.21 | G32: 16.97 | H32: =(LN(G32/F32)/(2*NORMINV(0.975,0,1)))^2 -> 0.09074985992 | I32: =1/C$30-1/D$30+1/C32-1/D32 -> 0.09074977094 | J32: =SQRT(I32) -> 0.3012470264 | L32: =K30/(J31*J32) -> 0.7835347222 | P32: =L32*SQRT(H32*H31) -> 0.07838145717 | Q32: =H32 -> 0.09074985992 | U32: =LN(E32) -> 2.240709689
A33: Total | C33: =SUM(C30:C32) -> 123.2991 | D33: =SUM(D30:D32) -> 15841.3283
A35: Check | C35: OR
A36: Never
A37: <20 | C37: =(C31/D31)/(C$30/D$30) -> 3.599987652
A38: 20+ | C38: =(C32/D32)/(C$30/D$30) -> 9.399977715
A40: Inverted matrix | H40: =MINVERSE(P31:Q32) -> 23.48907849 | I40: -20.28772498 | N40: Check: | P40: =MMULT(P31:Q32,H40:I41) -> 1 | Q40: 0
H41: -20.28772498 | I41: 28.54198837 | P41: 0 | Q41: 1
A44: X inverted | K44: Dose by distribution
A45: =B31 -> 10 | B45: =B32 -> 26.0294 | K45: Values from ByDistribution sheet | O45: =U46 -> X(0) | P45: =U47 -> X(1) | Q45: =U48 -> X(2) | V45: X
N46: X inverted | O46: =V46 -> 0 | P46: =V47 -> 0.35840254 | Q46: =V48 -> 0.6449899122 | U46: X(0) | V46: =ByDistribution!K66 -> 0 | W46: ignored
O47: ignored | U47: X(1) | V47: =ByDistribution!K67 -> 0.35840254
A48: x' C-1 L: | C48: C-1 L | D48: =MMULT(H40:I41,U31:U32) -> -15.37094629 | K48: C-1 L | L48: =MMULT(H40:I41,U31:U32) -> -15.37094629 | U48: X(2) | V48: =ByDistribution!K68 -> 0.6449899122
D49: 37.96707632 | L49: 37.96707632
C51: x' C-1 | D51: =MMULT(A45:B45,H40:I41) -> -293.1865236 | E51: 540.0535823 | K51: x' C-1 | L51: =MMULT(P46:Q46,H40:I41) -> -4.666832558 | M51: 11.13812241
C53: x' C-1 L: | D53: =MMULT(D51:E51,U31:U32) -> 834.5507534 | F53: =MMULT(A45:B45,D48:D49) -> 834.5507534 | K53: x' C-1 L: | L53: =MMULT(L51:M51,U31:U32) -> 18.97939503 | N53: =MMULT(P46:Q46,L48:L49) -> 18.97939503
I54: se(B*) | Q54: se(B*)
A55: Vb*: | C55: x' C-1 x | D55: =MMULT(D51:E51,B31:B32) -> 11125.40548 | F55: Vb* | G55: =1/D55 -> 8.988436439e-05 | I55: =SQRT(G55) -> 0.00948073649 | K55: x' C-1 x | L55: =MMULT(L51:M51,V47:V48) -> 5.511371953 | N55: Vb* | O55: =1/L55 -> 0.1814430252 | Q55: =SQRT(O55) -> 0.4259612954
C57: b* | D57: =G55*D53 -> 0.07501306402 | K57: b* | L57: =O55*L53 -> 3.44367885

Sheet KARCHE2005_P (hidden)
A1: KARCHE2005 | C1: Cross-sectional study | F1: Note: uses our effective numbers.
A2: Number of subjects: see Table I, Parental connectedness.
D3: n | E3: % | F3: N, estimated | H3: Non-cases, estimated and rounded
B4: Low | D4: 43 | E4: 55 | F4: =D4*100/E4 -> 78.18181818 | H4: =ROUND(F4-D4,0) -> 35
B5: Medium | D5: 54 | E5: 50 | F5: =D5*100/E5 -> 108 | H5: =ROUND(F5-D5,0) -> 54
B6: High | D6: 38 | E6: 32 | F6: 118.75 | H6: 81
B7: Total | D7: =SUM(D4:D6) -> 135 | F7: =SUM(F4:F6) -> 304.9318182 | H7: =SUM(H4:H6) -> 170
C9: Cases | D9: Non-cases
B10: Unexp | C10: =D4 -> 43 | D10: =H4 -> 35
B11: Exp | C11: =SUM(D5:D6) -> 92 | D11: =SUM(H5:H6) -> 135
B12: Total | C12: =SUM(C10:C11) -> 135 | D12: =SUM(D10:D11) -> 170
C14: Our effective numbers | E14: See Table II | H14: v(i) | I14: v(i) | J14: s(i) | K14: rNum =
B15: Dose | C15: Cases | D15: Non-cases | E15: RR | F15: CI Lower | G15: CI Upper | H15: based on CI | I15: based on n | J15: based on n | K15: 1/Ao+1/Bo | L15: r(x,<20) | M15: r(x,20+) | P15: C(x,<20) | Q15: C(x,20+) | U15: L = Ln(RR)
A16: Low | B16: 0 | C16: 22.12853902 | D16: 44.77018475 | K16: =1/C16+1/D16 -> 0.06752680543
A17: Medium | B17: 1 | C17: 65.53272143 | D17: 105.2261797 | E17: 1.26 | F17: 0.69 | G17: 2.27 | H17: =(LN(G17/F17)/(2*NORMINV(0.975,0,1)))^2 -> 0.09228969633 | I17: =1/C$16+1/D$16+1/C17+1/D17 -> 0.09228969633 | J17: =SQRT(I17) -> 0.3037921927 | M17: =K16/(J17*J18) -> 0.7245643994 | P17: =H17 -> 0.09228969633 | Q17: =M17*SQRT(H17*H18) -> 0.06752680543 | U17: =LN(E17) -> 0.231111721
A18: High | B18: 2 | C18: 85.02414947 | D18: 67.45874552 | E18: 2.55 | F18: 1.4 | G18: 4.66 | H18: =(LN(G18/F18)/(2*NORMINV(0.975,0,1)))^2 -> 0.09411204461 | I18: =1/C$16+1/D$16+1/C18+1/D18 -> 0.09411204461 | J18: =SQRT(I18) -> 0.3067768645 | L18: =K16/(J17*J18) -> 0.7245643994 | P18: =L18*SQRT(H18*H17) -> 0.06752680543 | Q18: =H18 -> 0.09411204461 | U18: =LN(E18) -> 0.9360933592
A19: Total | C19: =SUM(C16:C18) -> 172.6854099 | D19: =SUM(D16:D18) -> 217.45511
A21: Check | C21: OR
A22: Low
A23: Medium | C23: =(C17/D17)/(C$16/D$16) -> 1.26
A24: High | C24: =(C18/D18)/(C$16/D$16) -> 2.55
A26: Inverted matrix | H26: =MINVERSE(P17:Q18) -> 22.81115594 | I26: -16.36734698 | N26: Check: | P26: =MMULT(P17:Q18,H26:I27) -> 1 | Q26: 0
H27: -16.36734698 | I27: 22.36944977 | P27: -2.220446049e-16 | Q27: 1
A30: X inverted | K30: Dose by distribution
A31: =B17 -> 1 | B31: =B18 -> 2 | K31: Values from ByDistribution sheet | O31: =U32 -> X(0) | P31: =U33 -> X(1) | Q31: =U34 -> X(2) | V31: X
N32: X inverted | O32: =V32 -> 0 | P32: =V33 -> 0.3045795204 | Q32: =V34 -> 0.7188428174 | U32: X(0) | V32: =ByDistribution!K75 -> 0 | W32: ignored
O33: ignored | U33: X(1) | V33: =ByDistribution!K76 -> 0.3045795204
A34: x' C-1 L: | C34: C-1 L | D34: =MMULT(H26:I27,U17:U18) -> -10.0494393 | K34: C-1 L | L34: =MMULT(H26:I27,U17:U18) -> -10.0494393 | U34: X(2) | V34: =ByDistribution!K77 -> 0.7188428174
D35: 17.15720765 | L35: 17.15720765
C37: x' C-1 | D37: =MMULT(A31:B31,H26:I27) -> -9.923538013 | E37: 28.37155256 | K37: x' C-1 | L37: =MMULT(P32:Q32,H26:I27) -> -4.817738877 | M37: 11.0949596
C39: x' C-1 L: | D39: =MMULT(D37:E37,U17:U18) -> 24.264976 | F39: =MMULT(A31:B31,D34:D35) -> 24.264976 | K39: x' C-1 L: | L39: =MMULT(L37:M37,U17:U18) -> 9.272482083 | N39: =MMULT(P32:Q32,L34:L35) -> 9.272482083
I40: se(B*) | Q40: se(B*)
A41: Vb*: | C41: x' C-1 x | D41: =MMULT(D37:E37,B17:B18) -> 46.81956712 | F41: Vb* | G41: =1/D41 -> 0.02135859132 | I41: =SQRT(G41) -> 0.1461457879 | K41: x' C-1 x | L41: =MMULT(L37:M37,V33:V34) -> 6.508147424 | N41: Vb* | O41: =1/L41 -> 0.1536535568 | Q41: =SQRT(O41) -> 0.3919866794
C43: b* | D43: =G41*D39 -> 0.5182657058 | K43: b* | L43: =O41*L39 -> 1.424749852

Sheet KARCHE2005_F (hidden)
A1: KARCHE2005 | C1: Friend connectedness | E1: Cross-sectional study | H1: Note: uses our effective numbers.
A2: Number of subjects: see Table I, Friend connectedness.
D3: n | E3: % | F3: N, estimated | H3: Non-cases, estimated and rounded
B4: Low | D4: 19 | E4: 34 | F4: =D4*100/E4 -> 55.88235294 | H4: =ROUND(F4-D4,0) -> 37
B5: Medium | D5: 51 | E5: 43 | F5: =D5*100/E5 -> 118.6046512 | H5: =ROUND(F5-D5,0) -> 68
B6: High | D6: 65 | E6: 51 | F6: 127.4509804 | H6: 62
B7: Total | D7: =SUM(D4:D6) -> 135 | F7: =SUM(F4:F6) -> 301.9379845 | H7: =SUM(H4:H6) -> 167
C9: Cases | D9: Non-cases
B10: Unexp | C10: =D4 -> 19 | D10: =H4 -> 37
B11: Exp | C11: =SUM(D5:D6) -> 116 | D11: =SUM(H5:H6) -> 130
B12: Total | C12: =SUM(C10:C11) -> 135 | D12: =SUM(D10:D11) -> 167
C14: Our effective numbers | E14: See Table II | H14: v(i) | I14: v(i) | J14: s(i) | K14: rNum =
B15: Dose | C15: Cases | D15: Non-cases | E15: OR | F15: CI Lower | G15: CI Upper | H15: based on CI | I15: based on n | J15: based on n | K15: 1/Ao+1/Bo | L15: r(x,<20) | M15: r(x,20+) | P15: C(x,<20) | Q15: C(x,20+) | U15: L = Ln(RR)
A16: Low | B16: 0 | C16: 9.32746505 | D16: 22.57822962 | K16: =1/C16+1/D16 -> 0.1515007172
A17: Medium | B17: 1 | C17: 40.43958338 | D17: 57.58163689 | E17: 1.7 | F17: 0.72 | G17: 4.04 | H17: =(LN(G17/F17)/(2*NORMINV(0.975,0,1)))^2 -> 0.1935956117 | I17: =1/C$16+1/D$16+1/C17+1/D17 -> 0.1935956117 | J17: =SQRT(I17) -> 0.4399950133 | M17: =K16/(J17*J18) -> 0.7208755833 | P17: =H17 -> 0.1935956117 | Q17: =M17*SQRT(H17*H18) -> 0.1515007172 | U17: =LN(E17) -> 0.5306282511
A18: High | B18: 2 | C18: 32.61271247 | D18: 21.7473604 | E18: 3.63 | F18: 1.43 | G18: 9.3 | H18: =(LN(G18/F18)/(2*NORMINV(0.975,0,1)))^2 -> 0.2281461988 | I18: =1/C$16+1/D$16+1/C18+1/D18 -> 0.2281461988 | J18: =SQRT(I18) -> 0.4776465207 | L18: =K16/(J17*J18) -> 0.7208755833 | P18: =L18*SQRT(H18*H17) -> 0.1515007172 | Q18: =H18 -> 0.2281461988 | U18: =LN(E18) -> 1.289232648
A19: Total | C19: =SUM(C16:C18) -> 82.37976091 | D19: =SUM(D16:D18) -> 101.9072269
A21: Check | C21: OR
A22: Low
A23: Medium | C23: =(C17/D17)/(C$16/D$16) -> 1.7
A24: High | C24: =(C18/D18)/(C$16/D$16) -> 3.63
A26: Inverted matrix | H26: =MINVERSE(P17:Q18) -> 10.75368201 | I26: -7.140993565 | N26: Check: | P26: =MMULT(P17:Q18,H26:I27) -> 1 | Q26: 0
H27: -7.140993565 | I27: 9.125138434 | P27: 2.220446049e-16 | Q27: 1
A30: X inverted | K30: Dose by distribution
A31: =B17 -> 1 | B31: =B18 -> 2 | K31: Values from ByDistribution sheet | O31: =U32 -> X(0) | P31: =U33 -> X(1) | Q31: =U34 -> X(2) | V31: X
N32: X inverted | O32: =V32 -> 0 | P32: =V33 -> 0.3525124494 | Q32: =V34 -> 0.7659472094 | U32: X(0) | V32: =ByDistribution!K84 -> 0 | W32: ignored
O33: ignored | U33: X(1) | V33: =ByDistribution!K85 -> 0.3525124494
A34: x' C-1 L: | C34: C-1 L | D34: =MMULT(H26:I27,U17:U18) -> -3.500194568 | K34: C-1 L | L34: =MMULT(H26:I27,U17:U18) -> -3.500194568 | U34: X(2) | V34: =ByDistribution!K86 -> 0.7659472094
D35: 7.975213463 | L35: 7.975213463
C37: x' C-1 | D37: =MMULT(A31:B31,H26:I27) -> -3.528305121 | E37: 11.1092833 | K37: x' C-1 | L37: =MMULT(P32:Q32,H26:I27) -> -1.678817308 | M37: 4.472085186
C39: x' C-1 L: | D39: =MMULT(D37:E37,U17:U18) -> 12.45023236 | F39: =MMULT(A31:B31,D34:D35) -> 12.45023236 | K39: x' C-1 L: | L39: =MMULT(L37:M37,U17:U18) -> 4.874730335 | N39: =MMULT(P32:Q32,L34:L35) -> 4.874730335
I40: se(B*) | Q40: se(B*)
A41: Vb*: | C41: x' C-1 x | D41: =MMULT(D37:E37,B17:B18) -> 18.69026149 | F41: Vb* | G41: =1/D41 -> 0.05350379933 | I41: =SQRT(G41) -> 0.231308883 | K41: x' C-1 x | L41: =MMULT(L37:M37,V33:V34) -> 2.833577167 | N41: Vb* | O41: =1/L41 -> 0.3529108054 | Q41: =SQRT(O41) -> 0.5940629641
C43: b* | D43: =G41*D39 -> 0.6661347337 | K43: b* | L43: =O41*L39 -> 1.720345009

Sheet GALLO2010 (hidden)
A1: GALLO2010 | C1: Prospective study | E1: Note: uses our effective numbers.
A2: Data from Table 5: | C2: All cardiovascular deaths, packs/day spousal exposure.
C4: Cases | D4: At risk
B5: Unexp | C5: 92 | D5: 47112
B6: Exp | C6: 9 | D6: 4752
B7: Total | C7: =SUM(C5:C6) -> 101 | D7: =SUM(D5:D6) -> 51864
B9: X | C9: Fitted values (n) | E9: Adjusted results | H9: v(i) | I9: v(i) | J9: s(i)
B10: Dose | C10: Cases | D10: At risk | E10: RR | F10: CI Lower | G10: CI Upper | H10: based on CI | I10: based on n | J10: based on n | K10: 1/Ao-1/Bo | L10: r(x,2) | M10: r(x,6) | N10: r(x,11) | O10: C(x,2) | P10: C(x,6) | Q10: C(x,11)
A11: None | B11: 0 | C11: 38.73017011 | D11: 21683.57711 | K11: =1/C11-1/D11 -> 0.02577354669
A12: <0.5 packs/day | B12: 0.5 | C12: 3.39557688 | D12: 1016.607913 | E12: 1.87 | F12: 0.62 | G12: 5.68 | H12: =(LN(G12/F12)/(2*NORMINV(0.975,0,1)))^2 -> 0.3192906516 | I12: =1/C$11-1/D$11+1/C12-1/D12 -> 0.3192906516 | J12: =SQRT(I12) -> 0.5650580957 | M12: =K11/(J12*J13) -> 0.07104122856 | N12: =K11/(J12*J14) -> 0.05957558087 | O12: =H12 -> 0.3192906516 | P12: =M12*SQRT(H12*H13) -> 0.02577354669 | Q12: =N12*SQRT(H12*H14) -> 0.02577354669
A13: 1 pack/day | B13: 1 | C13: 2.578867893 | D13: 763.9216446 | E13: 1.89 | F13: 0.54 | G13: 6.69 | H13: =(LN(G13/F13)/(2*NORMINV(0.975,0,1)))^2 -> 0.4122315638 | I13: =1/C$11-1/D$11+1/C13-1/D13 -> 0.4122315638 | J13: =SQRT(I13) -> 0.6420526177 | L13: =K11/(J12*J13) -> 0.07104122856 | N13: =K11/(J13*J14) -> 0.05243131693 | O13: =L13*SQRT(H13*H12) -> 0.02577354669 | P13: =H13 -> 0.4122315638 | Q13: =N13*SQRT(H13*H14) -> 0.02577354669
A14: 1.5+ packs/day | B14: 1.5 | C14: 1.776601618 | D14: 404.3304699 | E14: 2.46 | F14: 0.55 | G14: 11.06 | H14: 0.586172713 | I14: 0.586172713 | J14: 0.7656191697 | L14: =K11/(J14*J12) -> 0.05957558087 | M14: =K11/(J14*J13) -> 0.05243131693 | O14: =L14*SQRT(H14*H12) -> 0.02577354669 | P14: =M14*SQRT(H14*H13) -> 0.02577354669 | Q14: =H14 -> 0.586172713
C15: =SUM(C11:C14) -> 46.4812165 | D15: =SUM(D11:D14) -> 23868.43714
O16: Note:
O17: C uses v(i) for diagonals and a calculation using r for off-diagonals.
E18: L | O18: v(i) are based on CIs.
A19: None | C19: Check | O19: r is calculated using the s(i) which are based on n values
A20: <0.5 packs/day | C20: =(C12/D12)/(C$11/D$11) -> 1.87 | E20: =LN(E12) -> 0.6259384309 | P20: This is the best estimate we have for correlation.
A21: 1 pack/day | C21: =(C13/D13)/(C$11/D$11) -> 1.89 | E21: =LN(E13) -> 0.6365768291
A22: 1.5+ packs/day | C22: 2.46 | E22: 0.9001613499
A24: Matrix without zero values | G24: Inverted matrix
A25: =O12 -> 0.3192906516 | B25: =P12 -> 0.02577354669 | C25: 0.02577354669 | G25: =MINVERSE(A25:C27) -> 3.157756542 | H25: -0.1892687913 | I25: -0.1305220389
A26: =O13 -> 0.02577354669 | B26: 0.4122315638 | C26: 0.02577354669 | G26: -0.1892687913 | H26: 2.443852451 | I26: -0.09913224539
A27: 0.02577354669 | B27: 0.02577354669 | C27: 0.586172713 | G27: -0.1305220389 | H27: -0.09913224539 | I27: 1.71607955
K28: Dose by distribution
A29: X inverted | K29: Values from ByDistribution sheet | O29: =T30 -> X(0) | P29: =T31 -> X(1) | Q29: =T32 -> X(2) | R29: =T33 -> X(3)
A30: =B12 -> 0.5 | B30: =B13 -> 1 | C30: =B14 -> 1.5 | N30: X inverted | O30: =U30 -> 0 | P30: =U31 -> 0.47552726 | Q30: =U32 -> 0.5128260899 | R30: =U33 -> 0.53729883 | T30: X(0) | U30: =ByDistribution!K93 -> 0 | V30: ignored
O31: ignored | T31: X(1) | U31: =ByDistribution!K94 -> 0.47552726
A32: x' C-1 L: | C32: C-1 L | D32: =MMULT(G25:I27,E20:E22) -> 1.738586153 | F32: x' C-1 L: | G32: =MMULT(A30:C30,D32:D34) -> 4.317203945 | T32: X(2) | U32: =ByDistribution!K95 -> 0.5128260899
D33: 1.347994218 | T33: X(3) | U33: =ByDistribution!K96 -> 0.53729883
D34: 1.399944434
C36: x' C-1 | D36: =MMULT(A30:C30,G25:I27) -> 1.193826421 | E36: 2.200519687 | F36: 2.40972606 | K36: x' C-1 | L36: =MMULT(P30:R30,G25:I27) -> 1.334408003 | M36: 1.110005188 | N36: 0.809143145
C38: x' C-1 L: | D38: =MMULT(D36:F36,E20:E22) -> 4.317203945 | K38: x' C-1 L: | L38: =MMULT(L36:N36,E20:E22) -> 2.27022022
A40: Vb*: | C40: x' C-1 x | D40: =MMULT(D36:F36,B12:B14) -> 6.412021988 | F40: Vb* | G40: =1/D40 -> 0.1559570447 | K40: x' C-1 x | L40: =MMULT(L36:N36,U31:U33) -> 1.638538667 | N40: Vb* | O40: =1/L40 -> 0.6102999095
C42: b* | D42: =G40*D38 -> 0.6732983688 | K42: b* | L42: =O40*L38 -> 1.385515195
A45: Identity matrix? | C45: =MMULT(A25:C27,G25:I27) -> 1 | D45: -1.301042607e-18 | E45: 0 | G45: Yes!
C46: 9.107298249e-18 | D46: 1 | E46: -6.938893904e-18
C47: 0 | D47: -6.938893904e-18 | E47: 1
A49: Exp(b*) | D49: =EXP(D42) -> 1.960693758 | F49: OR | I49: Exp(b*) | L49: =EXP(L42) -> 3.996884549 | N49: OR
A50: Exp(b*-1.96*Vb*) | D50: =EXP(D42-(NORMINV(0.975,0,1)*SQRT(G40))) -> 0.9041872618 | F50: CI (lower) | I50: Exp(b*-1.96*Vb*) | L50: =EXP(L42-(NORMINV(0.975,0,1)*SQRT(O40))) -> 0.8644672355 | N50: CI (lower)
A51: Exp(b*+1.96*Vb*) | D51: =EXP(D42+(NORMINV(0.975,0,1)*SQRT(G40))) -> 4.251685657 | F51: CI (upper) | I51: Exp(b*+1.96*Vb*) | L51: =EXP(L42+(NORMINV(0.975,0,1)*SQRT(O40))) -> 18.4796895 | N51: CI (upper)
A54: Increased dose values
A55: X inverted | I55: X
A56: 3 | B56: 7 | C56: 12 | I56: 3 | AA56: 0.03977930666 | AB56: 0.3576697377
I57: 7 | AA57: 0.0003617838575 | AB57: 0.05690242657
A58: x' C-1 L: | C58: C-1 L | D58: =MMULT(G25:I27,E20:E22) -> 1.738586153 | F58: x' C-1 L: | G58: =MMULT(A56:C56,D58:D60) -> 31.45105119 | I58: 12
D59: 1.347994218
D60: 1.399944434
C62: x' C-1 | D62: =MMULT(A56:C56,G25:I27) -> 6.582123621 | E62: 15.34957384 | F62: 19.50746276
C64: x' C-1 L: | D64: =MMULT(D62:F62,E20:E22) -> 31.45105119
A66: Vb*: | C66: x' C-1 x | D66: =MMULT(D62:F62,I56:I58) -> 361.2829409 | F66: Vb* | G66: =1/D66 -> 0.002767913695
C68: b* | D68: =G66*D64 -> 0.08705379532
A71: Exp(b*) | D71: =EXP(D68) -> 1.090955366 | F71: OR
A72: Exp(b*-1.96*Vb*) | D72: =EXP(D68-(NORMINV(0.975,0,1)*SQRT(G66))) -> 0.9840665006 | F72: CI (lower)
A73: Exp(b*+1.96*Vb*) | D73: =EXP(D68+(NORMINV(0.975,0,1)*SQRT(G66))) -> 1.209454453 | F73: CI (upper)

Sheet Parameters (hidden)
A1: Solver precision values: | E1: Row number for
B2: Id | C2: Value | D2: Selected Id | E2: selected value
B3: 1 | C3: 0.0001 | D3: 8 | E3: =D3+2 -> 10
B4: 2 | C4: 1e-05
B5: 3 | C5: 1e-06
B6: 4 | C6: 1e-07
B7: 5 | C7: 1e-08
B8: 6 | C8: 1e-09
B9: 7 | C9: 1e-10
B10: 8 | C10: 1e-11
B11: 9 | C11: 1e-12
B12: 10 | C12: 1e-13
